bitfinex/quotes_BTCUSD_20250212
["timestamp","ask_amount","ask_price","bid_price","bid_amount"]
[1739375771163,0.15635,95938.0,95937.0,0.08424999]
[1739375771380,0.15635,95938.0,95937.0,0.08438228]
[1739375771630,0.44138905,95938.0,95937.0,0.00013229]
[1739375772064,0.46438905,95938.0,95937.0,0.00013229]
[1739375772264,0.5668927,95938.0,95937.0,0.00013229]
[1739375772919,0.5678927,95938.0,95937.0,0.00913229]
[1739375773124,0.5678927,95938.0,95937.0,0.01613229]
[1739375773378,0.5668927,95938.0,95937.0,0.00013229]
[1739375773752,0.58520299,95938.0,95937.0,0.00013229]
[1739375775341,0.45969934,95938.0,95937.0,0.00013229]
[1739375775452,0.47918949,95938.0,95937.0,0.00013229]
[1739375775658,0.49985046,95938.0,95937.0,0.00013229]
[1739375777038,0.48036031,95938.0,95937.0,0.00013229]
[1739375777548,0.44782491,95938.0,95937.0,0.00013229]
[1739375777700,0.55032856,95938.0,95937.0,0.00013229]
[1739375778553,0.55032856,95938.0,95937.0,0.00035615]
[1739375779717,0.56979954,95938.0,95937.0,0.00035615]
[1739375780096,0.59279954,95938.0,95937.0,0.00035615]
[1739375781474,0.03778127,95938.0,95937.0,0.07765615]
[1739375781676,0.02547098,95938.0,95937.0,0.23400815]
[1739375781877,0.02547098,95938.0,95937.0,0.3365118]
[1739375782055,0.3284,95965.0,95937.0,0.1028598]
[1739375782259,0.08752654,95966.0,95957.0,0.0753]
[1739375782574,0.01228838,95962.0,95957.0,0.0753]
[1739375782808,0.156315,95960.0,95957.0,0.0753]
[1739375783010,0.1564186,95962.0,95957.0,0.0743]
[1739375783229,0.156315,95960.0,95957.0,0.0743]
[1739375783432,0.0001066,95962.0,95957.0,0.0743]
[1739375783876,0.156318,95958.0,95957.0,0.0753]
[1739375785024,0.0001066,95962.0,95957.0,0.0753]
[1739375785226,0.0001066,95962.0,95957.0,0.0743]
[1739375785426,0.0001066,95962.0,95957.0,0.0753]
[1739375785656,0.0011066,95962.0,95958.0,0.0451]
[1739375786063,0.0011066,95962.0,95961.0,0.156313]
[1739375786222,0.0001066,95962.0,95961.0,0.156313]
[1739375786421,0.0011066,95962.0,95961.0,0.156313]
[1739375787061,0.0001066,95962.0,95961.0,0.156313]
[1739375787266,0.01252685,95971.0,95961.0,0.0809]
[1739375787467,0.02060547,95973.0,95961.0,0.0809]
[1739375787757,0.02060547,95973.0,95970.0,0.156298]
[1739375787945,0.06086037,95982.0,95962.0,0.208415]
[1739375788197,0.06086037,95982.0,95958.0,0.0451]
[1739375788198,0.06086037,95982.0,95963.0,0.0761]
[1739375788425,0.06086037,95982.0,95958.0,0.0451]
[1739375788426,0.06086037,95982.0,95976.0,0.156287]
[1739375788639,0.06086037,95982.0,95978.0,0.208381]
[1739375788850,0.06086037,95982.0,95981.0,0.20168]
[1739375789062,0.06094303,95982.0,95981.0,0.0454]
[1739375789261,0.08196195,95982.0,95981.0,0.0454]
[1739375789880,0.03380075,95982.0,95981.0,0.0454]
[1739375790692,0.03390735,95982.0,95981.0,0.0454]
[1739375790907,0.03390735,95982.0,95981.0,0.0554]
[1739375791508,0.03390735,95982.0,95981.0,0.0454]
[1739375791972,0.03390735,95982.0,95981.0,0.0534]
[1739375792380,0.03390735,95982.0,95981.0,0.0584]
[1739375792806,0.03390735,95982.0,95981.0,0.013]
[1739375792807,0.19018635,95982.0,95981.0,0.013]
[1739375792979,0.19018635,95982.0,95981.0,0.008]
[1739375793379,0.19018635,95982.0,95981.0,0.005]
[1739375793805,0.35438184,95982.0,95981.0,0.016]
[1739375794187,0.35338184,95982.0,95981.0,0.005]
[1739375794818,0.156297,95971.0,95970.0,0.0829]
[1739375796669,0.156297,95971.0,95970.0,0.0889]
[1739375798621,0.17571013,95971.0,95970.0,0.0889]
[1739375800122,0.156297,95971.0,95970.0,0.0889]
[1739375800521,0.157297,95971.0,95970.0,0.1019]
[1739375801122,0.16967794,95971.0,95970.0,0.1019]
[1739375801332,0.16967794,95971.0,95970.0,0.019]
[1739375801481,0.16967794,95971.0,95953.0,0.0787]
[1739375801482,0.156324,95954.0,95953.0,0.0787]
[1739375801935,0.34870934,95970.0,95953.0,0.0787]
[1739375802144,0.156318,95959.0,95953.0,0.0787]
[1739375802352,0.156322,95956.0,95953.0,0.0787]
[1739375802593,0.2084,95969.0,95953.0,0.0787]
[1739375802799,0.156318,95959.0,95953.0,0.244025]
[1739375802971,0.156319,95958.0,95953.0,0.244025]
[1739375803176,0.156319,95958.0,95953.0,0.0787]
[1739375803374,0.01942058,95958.0,95953.0,0.0787]
[1739375803586,0.156324,95954.0,95953.0,0.016]
[1739375803845,0.156324,95954.0,95953.0,0.012]
[1739375804398,0.17574458,95954.0,95953.0,0.012]
[1739375804947,0.25594654,95954.0,95953.0,0.012]
[1739375805141,0.01942058,95954.0,95947.0,0.0816]
[1739375805348,0.156334,95948.0,95947.0,0.0816]
[1739375806320,0.156334,95948.0,95947.0,0.0866]
[1739375806517,0.17575458,95948.0,95947.0,0.08673229]
[1739375806702,0.17575458,95948.0,95947.0,0.09073229]
[1739375806925,0.17575458,95948.0,95947.0,0.08573229]
[1739375807857,0.20672333,95948.0,95947.0,0.00413229]
[1739375808056,0.27825823,95948.0,95947.0,0.00413229]
[1739375808483,0.27925823,95948.0,95947.0,0.00513229]
[1739375809038,0.2917342,95948.0,95947.0,0.00513229]
[1739375809544,0.18923055,95948.0,95947.0,0.00513229]
[1739375809677,0.2203404,95948.0,95947.0,0.00513229]
[1739375811243,0.0640064,95948.0,95947.0,0.00513229]
[1739375811465,0.2203404,95948.0,95947.0,0.00513229]
[1739375813369,0.38865289,95948.0,95947.0,0.00513229]
[1739375813601,0.32284405,95948.0,95947.0,0.00513229]
[1739375814427,0.32284405,95948.0,95947.0,0.00535615]
[1739375817021,0.2203404,95948.0,95947.0,0.00535615]
[1739375818427,0.18923055,95948.0,95947.0,0.00535615]
[1739375818709,0.31282782,95948.0,95947.0,0.00535615]
[1739375818882,0.29609345,95948.0,95947.0,0.00535615]
[1739375819427,0.29509345,95948.0,95947.0,0.00035615]
[1739375819760,0.29809345,95948.0,95947.0,0.00035615]
[1739375820373,0.29509345,95948.0,95947.0,0.00035615]
[1739375820581,0.29809345,95948.0,95947.0,0.00035615]
[1739375821169,0.1955898,95948.0,95947.0,0.00035615]
[1739375822271,0.04635665,95948.0,95947.0,0.00035615]
[1739375822447,0.20269065,95948.0,95947.0,0.08255615]
[1739375822689,0.04935665,95948.0,95947.0,0.08255615]
[1739375822895,0.20569065,95948.0,95947.0,0.08255615]
[1739375823299,0.20269065,95948.0,95947.0,0.08255615]
[1739375823542,0.20269065,95948.0,95947.0,0.08655615]
[1739375823815,0.17149618,95948.0,95947.0,0.08655615]
[1739375824271,0.17149618,95948.0,95947.0,0.08855615]
[1739375824483,0.01516218,95948.0,95947.0,0.08855615]
[1739375824660,0.01516218,95948.0,95947.0,0.29419215]
[1739375824661,0.00268621,95948.0,95947.0,0.29419215]
[1739375824869,0.00268621,95948.0,95947.0,0.3966958]
[1739375825936,0.00268621,95948.0,95947.0,0.3926958]
[1739375826315,0.00368621,95948.0,95947.0,0.4036958]
[1739375826535,0.00468621,95948.0,95947.0,0.4106958]
[1739375826748,0.00468621,95948.0,95947.0,0.3976958]
[1739375826886,0.00368621,95948.0,95947.0,0.3976958]
[1739375827305,0.00468621,95948.0,95947.0,0.4106958]
[1739375827924,0.00468621,95948.0,95947.0,0.30819215]
[1739375827925,0.00479281,95948.0,95947.0,0.30819215]
[1739375828151,0.00479281,95948.0,95947.0,0.15185615]
[1739375828687,0.22930024,95948.0,95947.0,0.15185615]
[1739375829000,0.22930024,95948.0,95947.0,0.10255615]
[1739375829160,0.03601076,95948.0,95947.0,0.10255615]
[1739375829359,0.19234476,95948.0,95947.0,0.10255615]
[1739375829571,0.03601076,95948.0,95947.0,0.10255615]
[1739375830595,0.03601076,95948.0,95947.0,0.25889215]
[1739375833502,0.03601076,95948.0,95947.0,0.4077958]
[1739375834597,0.03601076,95948.0,95947.0,0.14890365]
[1739375834798,0.03601076,95948.0,95911.0,0.08424999]
[1739375834926,0.03601076,95948.0,95947.0,0.156336]
[1739375835143,0.03601076,95948.0,95931.0,0.10250365]
[1739375835144,0.03601076,95948.0,95940.0,0.156347]
[1739375835320,0.00479281,95948.0,95947.0,0.156336]
[1739375835524,0.00379281,95948.0,95947.0,0.156336]
[1739375835942,0.00479281,95948.0,95947.0,0.156336]
[1739375836527,0.00379281,95948.0,95947.0,0.156336]
[1739375836772,0.00379281,95948.0,95941.0,0.10250365]
[1739375837168,0.00479281,95948.0,95947.0,0.015]
[1739375837773,0.00479281,95948.0,95947.0,0.0918]
[1739375838115,0.00379281,95948.0,95947.0,0.0918]
[1739375838422,0.00479281,95948.0,95947.0,0.0918]
[1739375838717,0.00379281,95948.0,95947.0,0.0768]
[1739375838924,0.00579281,95948.0,95947.0,0.0768]
[1739375839425,0.00379281,95948.0,95947.0,0.0768]
[1739375839864,0.00579281,95948.0,95947.0,0.0768]
[1739375840830,0.00479281,95948.0,95947.0,0.0768]
[1739375841029,0.00579281,95948.0,95947.0,0.0828]
[1739375842010,0.17212681,95948.0,95947.0,0.006]
[1739375842245,0.18212681,95948.0,95947.0,0.006]
[1739375842652,0.19442472,95948.0,95947.0,0.006]
[1739375843266,0.19242472,95948.0,95947.0,0.006]
[1739375843728,0.19242472,95948.0,95947.0,0.008]
[1739375843938,0.42732189,95948.0,95947.0,0.008]
[1739375844234,0.15635,95939.0,95934.0,0.0757]
[1739375844591,0.156351,95938.0,95934.0,0.0757]
[1739375844791,0.01,95942.0,95934.0,0.0757]
[1739375844792,0.208464,95940.0,95934.0,0.0757]
[1739375844993,0.00268621,95938.0,95934.0,0.0757]
[1739375845379,0.00268621,95938.0,95934.0,0.0807]
[1739375845843,0.00268621,95938.0,95934.0,0.0757]
[1739375846338,0.00268621,95937.0,95934.0,0.0757]
[1739375847207,0.00268621,95937.0,95934.0,0.0807]
[1739375847425,0.00268621,95937.0,95934.0,0.0857]
[1739375847630,0.00268621,95936.0,95934.0,0.0757]
[1739375847850,0.00268621,95936.0,95934.0,0.0807]
[1739375848064,0.156355,95935.0,95934.0,0.01]
[1739375848269,0.01,95935.0,95934.0,0.01]
[1739375848645,0.01,95935.0,95934.0,0.005]
[1739375848768,0.01,95935.0,95928.0,0.0756]
[1739375848964,0.01268621,95935.0,95934.0,0.005]
[1739375849168,0.01268621,95935.0,95934.0,0.01]
[1739375849689,0.00268621,95935.0,95934.0,0.01]
[1739375850747,0.00268621,95935.0,95928.0,0.284088]
[1739375850958,0.00368621,95935.0,95934.0,0.005]
[1739375851156,0.00368621,95935.0,95934.0,0.238657]
[1739375851396,0.00468621,95935.0,95934.0,0.243657]
[1739375851577,0.00368621,95935.0,95934.0,0.238657]
[1739375851714,0.00268621,95935.0,95934.0,0.233657]
[1739375851918,0.00368621,95935.0,95934.0,0.0773]
[1739375852121,0.00468621,95935.0,95934.0,0.0773]
[1739375852330,0.00368621,95935.0,95934.0,0.0773]
[1739375852549,0.00468621,95935.0,95934.0,0.0823]
[1739375852981,0.00468621,95935.0,95934.0,0.005]
[1739375852982,0.01468621,95935.0,95934.0,0.005]
[1739375853194,0.18104121,95935.0,95934.0,0.005]
[1739375853938,0.18004121,95935.0,95934.0,0.005]
[1739375854292,0.18104121,95935.0,95934.0,0.01]
[1739375857367,0.02468621,95935.0,95934.0,0.01]
[1739375857592,0.18104121,95935.0,95934.0,0.01]
[1739375857728,0.18076498,95935.0,95934.0,0.01]
[1739375858254,0.01440998,95935.0,95934.0,0.01]
[1739375858462,0.02440998,95935.0,95934.0,0.01]
[1739375858817,0.01440998,95935.0,95934.0,0.01]
[1739375859387,0.00440998,95935.0,95934.0,0.0895]
[1739375860375,0.00440998,95935.0,95934.0,0.39520295]
[1739375860583,0.00440998,95935.0,95934.0,0.39416065]
[1739375861217,0.00440998,95935.0,95934.0,0.38916065]
[1739375861428,0.01,95954.0,95934.0,0.22780365]
[1739375861629,0.01,95954.0,95945.0,0.155338]
[1739375861838,0.01,95961.0,95947.0,0.156336]
[1739375861839,0.01,95960.0,95947.0,0.156336]
[1739375862050,0.01,95962.0,95947.0,0.156336]
[1739375862262,0.01,95961.0,95947.0,0.156336]
[1739375862513,0.01,95961.0,95947.0,0.155336]
[1739375862514,0.02,95961.0,95947.0,0.155336]
[1739375862723,0.01,95961.0,95947.0,0.155336]
[1739375862931,0.01,95966.0,95947.0,0.25783965]
[1739375863137,0.01,95965.0,95947.0,0.25783965]
[1739375863345,0.01,95961.0,95947.0,0.25783965]
[1739375864378,0.01,95963.0,95947.0,0.25783965]
[1739375864634,0.01,95967.0,95947.0,0.38523965]
[1739375865255,0.01,95963.0,95947.0,0.39223965]
[1739375865430,0.01,95961.0,95947.0,0.39223965]
[1739375865636,0.0011066,95948.0,95947.0,0.40723965]
[1739375866004,0.0001066,95948.0,95947.0,0.39223965]
[1739375866367,0.0011066,95948.0,95947.0,0.40023965]
[1739375866709,0.0011066,95948.0,95947.0,0.40723965]
[1739375867966,0.0001066,95948.0,95947.0,0.39223965]
[1739375868184,0.0011066,95948.0,95947.0,0.40023965]
[1739375868625,0.0021066,95948.0,95947.0,0.40723965]
[1739375868770,0.0011066,95948.0,95947.0,0.39223965]
[1739375869198,0.0011066,95948.0,95947.0,0.40023965]
[1739375869573,0.0001066,95948.0,95947.0,0.39239989]
[1739375869789,0.0001066,95948.0,95947.0,0.39223965]
[1739375870078,0.0011066,95948.0,95947.0,0.39223965]
[1739375871322,0.0021066,95948.0,95947.0,0.40723965]
[1739375872768,0.0021066,95948.0,95947.0,0.35933965]
[1739375876269,0.0021066,95948.0,95947.0,0.20511025]
[1739375876997,0.0021066,95948.0,95947.0,0.0221066]
[1739375878031,0.02160206,95948.0,95947.0,0.0221066]
[1739375879198,0.02160206,95948.0,95947.0,0.1784426]
[1739375879797,0.02160206,95948.0,95947.0,0.0221066]
[1739375880278,0.02160206,95948.0,95947.0,0.28094625]
[1739375881439,0.02160206,95948.0,95947.0,0.36024625]
[1739375882176,0.0021066,95948.0,95947.0,0.36024625]
[1739375883005,0.0021066,95948.0,95947.0,0.0221066]
[1739375883563,0.02160206,95948.0,95947.0,0.0221066]
[1739375883772,0.18793606,95948.0,95947.0,0.0221066]
[1739375883968,0.22857397,95948.0,95947.0,0.0221066]
[1739375884191,0.33347397,95948.0,95947.0,0.0221066]
[1739375884630,0.29283606,95948.0,95947.0,0.0221066]
[1739375885133,0.21093606,95948.0,95947.0,0.0221066]
[1739375885346,0.18793606,95948.0,95947.0,0.0221066]
[1739375885522,0.18693606,95948.0,95947.0,0.0151066]
[1739375885721,0.18593606,95948.0,95947.0,0.0001066]
[1739375886048,0.18793606,95948.0,95947.0,0.0151066]
[1739375886400,0.18693606,95948.0,95947.0,0.0091066]
[1739375886606,0.18693606,95948.0,95947.0,0.0061066]
[1739375886782,0.46741286,95948.0,95947.0,0.0061066]
[1739375887011,0.46841286,95948.0,95947.0,0.0151066]
[1739375888259,0.37093606,95948.0,95947.0,0.0151066]
[1739375892791,0.34793606,95948.0,95947.0,0.0151066]
[1739375894656,0.18160206,95948.0,95947.0,0.0151066]
[1739375894830,0.33793606,95948.0,95947.0,0.0151066]
[1739375894971,0.34793606,95948.0,95947.0,0.0151066]
[1739375895673,0.33793606,95948.0,95947.0,0.0151066]
[1739375896548,0.34793606,95948.0,95947.0,0.0151066]
[1739375896858,0.33793606,95948.0,95947.0,0.0151066]
[1739375897724,0.34793606,95948.0,95947.0,0.0151066]
[1739375897924,0.45043971,95948.0,95947.0,0.0151066]
[1739375899768,0.01,95948.0,95947.0,0.0151066]
[1739375899948,0.166334,95948.0,95947.0,0.0151066]
[1739375900146,0.16655787,95948.0,95947.0,0.0151066]
[1739375902322,0.16660192,95948.0,95947.0,0.0151066]
[1739375904363,0.00026792,95948.0,95947.0,0.0151066]
[1739375904682,0.01026792,95948.0,95947.0,0.0151066]
[1739375905207,0.00026792,95948.0,95947.0,0.0151066]
[1739375905430,0.16660192,95948.0,95947.0,0.0151066]
[1739375907376,0.01026792,95948.0,95947.0,0.0151066]
[1739375907617,0.00026792,95948.0,95947.0,0.0151066]
[1739375909466,0.16660192,95948.0,95947.0,0.0151066]
[1739375910484,0.01026792,95948.0,95947.0,0.0151066]
[1739375910702,0.00026792,95948.0,95947.0,0.0151066]
[1739375910911,0.00026792,95948.0,95947.0,0.0919066]
[1739375911896,0.01026792,95948.0,95947.0,0.0919066]
[1739375912091,0.01026792,95948.0,95947.0,0.0151066]
[1739375912092,0.16660192,95948.0,95947.0,0.0151066]
[1739375914390,0.17834477,95948.0,95947.0,0.0151066]
[1739375914549,0.20134477,95948.0,95947.0,0.0151066]
[1739375915193,0.22090107,95948.0,95947.0,0.0151066]
[1739375916864,0.22090107,95948.0,95947.0,0.0001066]
[1739375917071,0.22090107,95948.0,95947.0,0.0051066]
[1739375917485,0.32340472,95948.0,95947.0,0.0091066]
[1739375918038,0.90430837,95948.0,95947.0,0.0091066]
[1739375918251,0.92550412,95948.0,95947.0,0.0091066]
[1739375918475,0.59710412,95948.0,95947.0,0.0091066]
[1739375919613,0.57754782,95948.0,95947.0,0.0091066]
[1739375920028,0.59709706,95948.0,95947.0,0.0091066]
[1739375920354,0.59709706,95948.0,95947.0,0.0041066]
[1739375920570,0.49459341,95948.0,95947.0,0.0041066]
[1739375920991,0.49459341,95948.0,95947.0,0.0001066]
[1739375921312,0.49459341,95948.0,95947.0,0.0011066]
[1739375921825,0.38208976,95948.0,95947.0,0.0001066]
[1739375922029,0.38208976,95948.0,95947.0,0.0011066]
[1739375922240,0.38308976,95948.0,95947.0,0.0011066]
[1739375922648,0.39208976,95948.0,95947.0,0.0011066]
[1739375923060,0.39408976,95948.0,95947.0,0.0011066]
[1739375923285,0.38408976,95948.0,95947.0,0.0011066]
[1739375923496,0.39408976,95948.0,95947.0,0.0011066]
[1739375924056,0.59853439,95948.0,95947.0,0.0011066]
[1739375925248,0.67363439,95948.0,95947.0,0.0011066]
[1739375927903,0.57169341,95948.0,95947.0,0.0011066]
[1739375928179,0.48659341,95948.0,95947.0,0.0011066]
[1739375928373,0.82499341,95948.0,95947.0,0.0011066]
[1739375931954,0.66829401,95948.0,95947.0,0.0011066]
[1739375932542,0.67829401,95948.0,95947.0,0.0011066]
[1739375933730,0.73441908,95948.0,95947.0,0.0011066]
[1739375934010,0.67829401,95948.0,95947.0,0.0011066]
[1739375934690,0.51829401,95948.0,95947.0,0.0011066]
[1739375935102,0.52829401,95948.0,95947.0,0.0011066]
[1739375936663,0.65379766,95948.0,95947.0,0.0011066]
[1739375936858,0.80379766,95948.0,95947.0,0.0011066]
[1739375937141,0.57790131,95948.0,95947.0,0.0011066]
[1739375937693,0.47539766,95948.0,95947.0,0.0011066]
[1739375939103,0.46539766,95948.0,95947.0,0.0011066]
[1739375939309,0.33989401,95948.0,95947.0,0.0011066]
[1739375940379,0.34989401,95948.0,95947.0,0.0011066]
[1739375940749,0.19989401,95948.0,95947.0,0.0011066]
[1739375944085,0.18034477,95948.0,95947.0,0.0011066]
[1739375946165,0.53174477,95948.0,95947.0,0.0011066]
[1739375946809,0.55129482,95948.0,95947.0,0.0011066]
[1739375948341,0.52829482,95948.0,95947.0,0.0011066]
[1739375952217,0.55129482,95948.0,95947.0,0.0011066]
[1739375957821,0.70129482,95948.0,95947.0,0.0011066]
[1739375958026,0.80379847,95948.0,95947.0,0.0011066]
[1739375958678,0.90630212,95948.0,95947.0,0.0011066]
[1739375960466,0.95580212,95948.0,95947.0,0.0011066]
[1739375961182,0.85329847,95948.0,95947.0,0.0011066]
[1739375961317,0.85329847,95948.0,95947.0,0.0025866]
[1739375962407,0.83374842,95948.0,95947.0,0.0025866]
[1739375963181,0.85330584,95948.0,95947.0,0.0025866]
[1739375963608,0.80380584,95948.0,95947.0,0.0025866]
[1739375964075,0.79380584,95948.0,95947.0,0.0025866]
[1739375964210,0.70130219,95948.0,95947.0,0.0025866]
[1739375964435,0.69130219,95948.0,95947.0,0.0025866]
[1739375965316,0.67174477,95948.0,95947.0,0.0025866]
[1739375966937,0.68174477,95948.0,95947.0,0.0025866]
[1739375968802,0.73184776,95948.0,95947.0,0.0025866]
[1739375968997,0.83435141,95948.0,95947.0,0.0025866]
[1739375970861,0.85391049,95948.0,95947.0,0.0025866]
[1739375978611,0.85391049,95948.0,95947.0,0.0794866]
[1739375978612,0.350227,95948.0,95947.0,0.0794866]
[1739375978830,0.021827,95948.0,95947.0,0.2358226]
[1739375979209,0.021827,95948.0,95947.0,0.33832625]
[1739375979629,0.019827,95948.0,95947.0,0.33832625]
[1739375979839,0.019827,95948.0,95947.0,0.33732625]
[1739375980260,0.020827,95948.0,95947.0,0.34432625]
[1739375980669,0.019827,95948.0,95947.0,0.33732625]
[1739375980967,0.021827,95948.0,95947.0,0.34432625]
[1739375981410,0.020827,95948.0,95947.0,0.33732625]
[1739375981621,0.021827,95948.0,95947.0,0.34432625]
[1739375981750,0.00226792,95948.0,95947.0,0.34432625]
[1739375983143,0.00126792,95948.0,95947.0,0.34432625]
[1739375984665,0.00226792,95948.0,95947.0,0.35932625]
[1739375986540,0.00226792,95948.0,95947.0,0.40682625]
[1739375987504,0.00126792,95948.0,95947.0,0.39982625]
[1739375987745,0.00126792,95948.0,95947.0,0.39182625]
[1739375987950,0.00126792,95948.0,95947.0,0.40326419]
[1739375988153,0.00126792,95948.0,95947.0,0.41126419]
[1739375988557,0.00226792,95948.0,95947.0,0.41826419]
[1739375989012,0.00126792,95948.0,95947.0,0.40326419]
[1739375989423,0.00126792,95948.0,95947.0,0.55326419]
[1739375989605,0.00226792,95948.0,95947.0,0.56826419]
[1739375990147,0.3284,95964.0,95947.0,0.56826419]
[1739375990148,0.0001066,95970.0,95948.0,0.15]
[1739375990350,0.00015069,95970.0,95952.0,0.0809]
[1739375990566,0.00015069,95970.0,95969.0,0.1563]
[1739375990761,0.00015069,95970.0,95969.0,0.33970365]
[1739375991013,0.00015069,95970.0,95969.0,0.38710365]
[1739375991209,0.00015069,95970.0,95969.0,0.23080365]
[1739375991527,0.00015069,95970.0,95969.0,0.1283]
[1739375991728,0.00015069,95970.0,95969.0,0.0809]
[1739375991880,0.00115069,95970.0,95969.0,0.0879]
[1739375992519,0.00115069,95970.0,95969.0,0.0869]
[1739375993094,0.00115069,95970.0,95969.0,0.0979]
[1739375993282,0.00215069,95970.0,95969.0,0.0979]
[1739375998697,0.15844869,95970.0,95969.0,0.0979]
[1739375999161,0.15844869,95970.0,95969.0,0.018]
[1739376000939,0.00215069,95970.0,95969.0,0.018]
[1739376001150,0.02161021,95970.0,95969.0,0.018]
[1739376001730,0.18790821,95970.0,95969.0,0.018]
[1739376002133,0.15844869,95970.0,95969.0,0.018]
[1739376004745,0.16844869,95970.0,95969.0,0.018]
[1739376005536,0.23363981,95970.0,95969.0,0.018]
[1739376005730,0.25313227,95970.0,95969.0,0.018]
[1739376006133,0.50563592,95970.0,95969.0,0.018]
[1739376006335,0.52863592,95970.0,95969.0,0.018]
[1739376007002,0.52763592,95970.0,95969.0,0.007]
[1739376007201,0.156334,95948.0,95947.0,0.0015866]
[1739376007408,0.166334,95948.0,95947.0,0.0015866]
[1739376007831,0.156334,95948.0,95947.0,0.0015866]
[1739376008053,0.166334,95948.0,95947.0,0.0015866]
[1739376008238,0.30356425,95948.0,95947.0,0.0015866]
[1739376008462,0.35426517,95948.0,95947.0,0.0015866]
[1739376009031,0.56945629,95948.0,95905.0,0.0827]
[1739376009230,0.166393,95912.0,95905.0,0.0827]
[1739376009441,0.156393,95912.0,95905.0,0.0827]
[1739376009637,0.156403,95906.0,95905.0,0.0827]
[1739376010088,0.01,95915.0,95905.0,0.0827]
[1739376010264,0.156402,95907.0,95905.0,0.0827]
[1739376010472,0.156402,95907.0,95905.0,0.08274405]
[1739376011102,0.156398,95909.0,95905.0,0.08274405]
[1739376011476,0.208525,95912.0,95905.0,0.08274405]
[1739376011477,0.156393,95912.0,95905.0,0.08274405]
[1739376011677,0.01,95918.0,95911.0,0.005]
[1739376012081,0.01,95918.0,95905.0,0.08274405]
[1739376012280,0.15639,95914.0,95906.0,0.155403]
[1739376012601,0.001,95909.0,95907.0,0.25890365]
[1739376012826,0.156382,95919.0,95907.0,0.10250365]
[1739376013004,0.01,95919.0,95907.0,0.10250365]
[1739376013221,0.01,95919.0,95905.0,0.08274405]
[1739376013222,0.001,95912.0,95911.0,0.008]
[1739376013753,0.156401,95907.0,95905.0,4.405e-05]
[1739376014418,0.01946015,95906.0,95905.0,4.405e-05]
[1739376016359,0.17686315,95906.0,95905.0,0.00704405]
[1739376016825,0.17686315,95906.0,95905.0,0.02204405]
[1739376016826,0.17786315,95906.0,95905.0,0.02204405]
[1739376017037,0.17786315,95906.0,95905.0,0.02215055]
[1739376019635,0.02146015,95906.0,95905.0,0.02215055]
[1739376020043,0.02146015,95906.0,95905.0,0.02422945]
[1739376020245,0.17786315,95906.0,95905.0,0.02422945]
[1739376020454,0.17786315,95906.0,95905.0,0.02215055]
[1739376020653,0.218528,95910.0,95905.0,0.02215055]
[1739376020858,0.156403,95906.0,95905.0,0.02215055]
[1739376022395,0.156403,95906.0,95905.0,0.00715055]
[1739376022722,0.156403,95906.0,95905.0,0.02215055]
[1739376022883,0.156403,95906.0,95905.0,0.01515055]
[1739376023090,0.157923,95906.0,95905.0,0.02215055]
[1739376023295,0.157923,95906.0,95905.0,0.00715055]
[1739376023453,0.00152,95906.0,95905.0,0.015]
[1739376023656,0.00252,95906.0,95905.0,0.256104]
[1739376023908,0.00352,95906.0,95905.0,0.4119422]
[1739376025100,0.00352,95906.0,95905.0,0.5619422]
[1739376025932,0.00252,95906.0,95905.0,0.5469422]
[1739376026137,0.00152,95906.0,95905.0,0.5399422]
[1739376026355,0.00252,95906.0,95905.0,0.5549422]
[1739376026551,0.00352,95906.0,95905.0,0.5619422]
[1739376026778,0.00252,95906.0,95905.0,0.5469422]
[1739376027203,0.00352,95906.0,95905.0,0.5619422]
[1739376027414,0.00252,95906.0,95905.0,0.5549422]
[1739376027618,0.00352,95906.0,95905.0,0.5619422]
[1739376028454,0.00252,95906.0,95905.0,0.5549422]
[1739376028665,0.00152,95906.0,95905.0,0.5400488]
[1739376028875,0.00152,95906.0,95905.0,0.5550488]
[1739376029088,0.00152,95906.0,95905.0,0.25654515]
[1739376029349,0.00152,95906.0,95905.0,0.10014115]
[1739376029554,0.00152,95906.0,95905.0,0.00744115]
[1739376029973,0.00152,95906.0,95905.0,0.02944115]
[1739376030824,0.00152,95906.0,95905.0,0.02244115]
[1739376031038,0.00152,95906.0,95905.0,0.02944115]
[1739376031453,0.157923,95906.0,95905.0,0.02944115]
[1739376031902,0.157923,95906.0,95905.0,0.0071066]
[1739376032107,0.158923,95906.0,95905.0,0.0221066]
[1739376032999,0.158923,95906.0,95905.0,0.0151066]
[1739376033229,0.157923,95906.0,95905.0,0.0001066]
[1739376033430,0.158923,95906.0,95905.0,0.0181066]
[1739376033631,0.22178418,95906.0,95905.0,0.0111066]
[1739376033840,0.168923,95906.0,95905.0,0.0181066]
[1739376034036,0.31952665,95906.0,95905.0,0.0181066]
[1739376034242,0.37012758,95906.0,95905.0,0.0181066]
[1739376035652,0.39312758,95906.0,95905.0,0.0181066]
[1739376035881,0.4742967,95906.0,95905.0,0.0071066]
[1739376036279,0.4752967,95906.0,95905.0,0.0181066]
[1739376036483,0.39312758,95906.0,95905.0,0.0181066]
[1739376036639,0.41351945,95906.0,95905.0,0.0001066]
[1739376037053,0.41351945,95906.0,95905.0,0.0131066]
[1739376037481,0.62871057,95906.0,95905.0,0.0001066]
[1739376037682,0.62871057,95906.0,95905.0,0.0051066]
[1739376037892,0.73121422,95906.0,95905.0,0.0111066]
[1739376038579,0.62871057,95906.0,95905.0,0.0111066]
[1739376038778,0.70371057,95906.0,95905.0,0.0111066]
[1739376039160,0.70371057,95906.0,95905.0,0.0051066]
[1739376039367,0.15,95905.0,95875.0,0.0003153]
[1739376039595,0.15,95900.0,95882.0,0.08424999]
[1739376039791,0.156445,95880.0,95876.0,0.0807]
[1739376040027,0.166444,95881.0,95876.0,0.0807]
[1739376040183,0.156444,95881.0,95876.0,0.0807]
[1739376040384,0.166444,95881.0,95876.0,0.0807]
[1739376040580,0.01,95882.0,95877.0,0.15645]
[1739376040789,0.01,95882.0,95876.0,0.289302]
[1739376041107,0.01,95886.0,95880.0,0.156444]
[1739376041311,0.01,95886.0,95881.0,0.155443]
[1739376041476,0.01,95886.0,95882.0,0.156441]
[1739376041842,0.208572,95890.0,95879.0,0.208594]
[1739376041843,0.01,95884.0,95879.0,0.208594]
[1739376042039,0.001,95882.0,95881.0,0.156443]
[1739376042819,0.001,95882.0,95876.0,0.308302]
[1739376042820,0.001,95882.0,95876.0,0.0877]
[1739376043027,0.156449,95878.0,95876.0,0.0877]
[1739376043227,0.156449,95878.0,95877.0,0.00225249]
[1739376043429,0.01,95880.0,95877.0,0.00225249]